bitfinex/quotes_SOLUSD_20250514
["timestamp","ask_amount","ask_price","bid_price","bid_amount"]
[1747246767949,5.69378807,175.63,175.6,26.0]
[1747246768151,5.69378807,175.63,175.6,43.24515765]
[1747246769364,5.69378807,175.63,175.6,26.0]
[1747246769863,22.93894572,175.63,175.6,26.0]
[1747246770468,5.69378807,175.63,175.6,26.0]
[1747246770964,5.69378807,175.63,175.59,17.24515765]
[1747246771467,14.23411437,175.64,175.59,17.24515765]
[1747246771651,31.47927202,175.64,175.59,17.24515765]
[1747246772667,37.17273592,175.64,175.59,17.24515765]
[1747246773645,37.17273592,175.64,175.6,17.24515765]
[1747246773864,37.17273592,175.64,175.59,17.24515765]
[1747246774569,19.92757827,175.64,175.6,17.24515765]
[1747246774770,37.17273592,175.64,175.6,17.24515765]
[1747246776967,19.92757827,175.64,175.6,17.24515765]
[1747246777168,37.17273592,175.64,175.6,17.24515765]
[1747246778181,17.24515765,175.64,175.6,17.24515765]
[1747246779189,17.24515765,175.65,175.61,17.24515765]
[1747246779495,143.89287478,175.66,175.62,17.24515765]
[1747246779791,138.2,175.66,175.64,17.24515765]
[1747246780092,22.93711595,175.69,175.64,17.24515765]
[1747246780463,161.13671704,175.7,175.65,17.24515765]
[1747246782252,143.89155939,175.7,175.65,17.24515765]
[1747246782459,138.2,175.7,175.68,17.24515765]
[1747246782886,138.2,175.7,175.69,17.24515765]
[1747246784596,138.2,175.7,175.65,5.69313976]
[1747246784768,138.2,175.7,175.69,17.24515765]
[1747246785491,63.753972,175.76,175.69,17.24515765]
[1747246785492,143.88995886,175.75,175.69,17.24515765]
[1747246785695,138.2,175.75,175.71,17.24515765]
[1747246785991,155.44515765,175.75,175.71,17.24515765]
[1747246786770,161.13510997,175.75,175.71,17.24515765]
[1747246786994,155.44515765,175.75,175.71,17.24515765]
[1747246787303,138.2,175.75,175.71,17.24515765]
[1747246787592,155.44515765,175.75,175.71,17.24515765]
[1747246787887,138.2,175.75,175.71,17.24515765]
[1747246789797,138.2,175.75,175.72,17.24515765]
[1747246789977,161.1335346,175.8,175.74,17.24515765]
[1747246790296,143.88837695,175.8,175.75,17.24515765]
[1747246790461,161.1335346,175.8,175.75,17.24515765]
[1747246790889,138.2,175.8,175.77,17.24515765]
[1747246791089,17.24515765,175.82,175.78,17.24515765]
[1747246791409,17.24515765,175.82,175.77,22.93435899]
[1747246791612,24.01643392,175.83,175.78,17.24515765]
[1747246792184,6.77127627,175.83,175.79,17.24515765]
[1747246792483,24.01643392,175.83,175.79,17.24515765]
[1747246792684,6.77127627,175.83,175.79,17.24515765]
[1747246792984,24.01643392,175.83,175.79,17.24515765]
[1747246793313,6.77127627,175.83,175.79,17.24515765]
[1747246793499,24.01643392,175.83,175.78,17.24515765]
[1747246793900,18.32889938,175.83,175.78,17.24515765]
[1747246794097,1.08374173,175.83,175.79,17.24515765]
[1747246794298,20.20958236,175.84,175.8,17.24515765]
[1747246794494,24.01589084,175.84,175.8,17.24515765]
[1747246794693,24.01589084,175.84,175.79,17.24515765]
[1747246795311,18.32889938,175.84,175.8,17.24515765]
[1747246795512,1.74151953,175.94,175.83,17.24515765]
[1747246795698,2.02654047,176.03,175.93,34.4903153]
[1747246795899,17.77976006,176.14,176.02,34.4903153]
[1747246796211,17.77976006,176.14,176.11,43.24515765]
[1747246796510,17.77976006,176.14,176.11,70.56025575]
[1747246796710,71.11904027,176.22,176.13,60.4903153]
[1747246796881,71.11904027,176.22,176.12,25.77955194]
[1747246796882,106.67856041,176.28,176.24,26.0]
[1747246797082,106.67856041,176.28,176.24,34.4903153]
[1747246797316,106.67856041,176.28,176.24,17.24515765]
[1747246797537,106.67856041,176.28,176.23,22.62]
[1747246797685,45.2739483,176.25,176.24,45.24885111]
[1747246798025,22.64,176.38,176.33,28.45521629]
[1747246798183,22.64,176.38,176.33,45.70037394]
[1747246798412,6.3439,176.4,176.37,28.49791507]
[1747246798612,213.0,176.44,176.38,45.46038994]
[1747246798955,5.66712568,176.46,176.33,28.45521629]
[1747246799123,5.66712568,176.46,176.33,54.45521629]
[1747246799324,17.24515765,176.45,176.39,28.15476671]
[1747246799533,50.38661229,176.48,176.4,55.98270007]
[1747246799847,33.08488107,176.49,176.38,28.21523229]
[1747246800049,100.0,176.5,176.45,27.41871701]
[1747246800251,100.0,176.5,176.47,27.41871701]
[1747246800619,100.0,176.5,176.44,28.83945777]
[1747246800932,100.0,176.5,176.49,27.41871701]
[1747246801253,36.22895688,176.55,176.49,27.41871701]
[1747246801254,8.81023987,176.55,176.52,26.0]
[1747246801573,8.81023987,176.55,176.49,28.71192757]
[1747246801574,8.31023987,176.55,176.49,28.71192757]
[1747246801851,22.8,176.64,176.53,27.41871701]
[1747246801852,27.41871701,176.58,176.53,27.41871701]
[1747246802168,6.131,176.68,176.53,27.41871701]
[1747246802169,7.1941012,176.72,176.53,23.76]
[1747246802379,17.1941012,176.72,176.54,3.78356476]
[1747246802667,27.41871701,176.58,176.54,3.78356476]
[1747246802874,10.0,176.71,176.54,3.78356476]
[1747246802875,47.44,176.67,176.54,3.78356476]
[1747246803158,27.41871701,176.58,176.54,3.78356476]
[1747246803367,26.0,176.59,176.54,3.78356476]
[1747246803663,41.53237891,176.55,176.52,16.70490205]
[1747246803874,0.68610868,176.64,176.52,16.70490205]
[1747246804159,47.44,176.67,176.52,16.70490205]
[1747246804366,18.64964886,176.61,176.52,26.70490205]
[1747246804542,19.8165553,176.62,176.52,26.70490205]
[1747246804741,18.64964886,176.57,176.52,10.0]
[1747246804939,18.64964886,176.61,176.57,10.0]
[1747246805247,18.64964886,176.57,176.54,10.0]
[1747246805433,41.53237891,176.6,176.56,10.0]
[1747246805637,6.53355018,176.62,176.54,10.0]
[1747246805838,0.28432314,176.61,176.53,10.0]
[1747246806141,41.53237891,176.54,176.5,19.45752892]
[1747246806343,41.53237891,176.51,176.5,8.32467489]
[1747246806667,41.53237891,176.51,176.5,10.0]
[1747246806975,14.15843646,176.58,176.54,10.0]
[1747246807274,41.53237891,176.58,176.54,10.0]
[1747246807440,18.64964886,176.59,176.54,10.0]
[1747246807641,41.53237891,176.55,176.51,10.0]
[1747246807859,41.53237891,176.52,176.49,38.71192757]
[1747246808063,41.53237891,176.5,176.48,38.59878262]
[1747246808241,15.80397431,176.49,176.45,38.904096]
[1747246808555,41.53237891,176.46,176.44,10.0]
[1747246808760,26.14216157,176.51,176.44,10.0]
[1747246808761,18.64964886,176.51,176.44,10.0]
[1747246808959,41.53237891,176.48,176.44,10.0]
[1747246809169,41.53237891,176.45,176.41,8.32467489]
[1747246809350,41.53237891,176.48,176.41,8.32467489]
[1747246809351,0.28432314,176.47,176.42,10.0]
[1747246809552,41.53237891,176.45,176.44,10.0]
[1747246809871,18.64964886,176.5,176.45,10.0]
[1747246809872,0.14216157,176.5,176.45,10.0]
[1747246810070,41.53237891,176.46,176.42,10.0]
[1747246810242,41.53237891,176.43,176.39,10.0]
[1747246810435,14.30918151,176.47,176.39,10.0]
[1747246810642,5.66700668,176.46,176.43,10.0]
[1747246811146,41.53237891,176.44,176.41,10.0]
[1747246811350,41.53237891,176.43,176.42,10.0]
[1747246811549,41.53237891,176.43,176.41,10.0]
[1747246811750,5.66700668,176.46,176.42,10.0]
[1747246811954,41.53237891,176.43,176.41,10.0]
[1747246812474,41.53237891,176.48,176.42,10.0]
[1747246812656,41.53237891,176.44,176.43,10.0]
[1747246812849,19.8311519,176.49,176.42,10.0]
[1747246813069,41.53237891,176.43,176.42,10.0]
[1747246813251,41.53237891,176.48,176.42,10.0]
[1747246813456,41.53237891,176.45,176.43,10.0]
[1747246813648,41.53237891,176.45,176.41,10.0]
[1747246813851,41.53237891,176.48,176.41,38.21491515]
[1747246814055,41.53237891,176.43,176.42,10.0]
[1747246814644,5.66572237,176.5,176.43,28.01376589]
[1747246814844,5.66572237,176.5,176.45,38.904096]
[1747246815076,5.66411781,176.55,176.52,10.0]
[1747246815285,5.66411781,176.55,176.53,10.0]
[1747246815582,19.81992184,176.59,176.53,38.89328906]
[1747246815749,29.36436349,176.54,176.53,10.0]
[1747246815957,41.53237891,176.54,176.53,10.0]
[1747246816282,69.81237891,176.64,176.56,10.0]
[1747246816497,63.73133113,176.64,176.58,10.0]
[1747246816642,63.73133113,176.64,176.53,26.0]
[1747246816643,5.66155239,176.63,176.59,10.0]
[1747246816846,5.65962986,176.69,176.57,10.0]
[1747246817089,5.65962986,176.69,176.63,10.0]
[1747246817588,28.28,176.78,176.66,10.0]
[1747246817904,41.53237891,176.74,176.7,10.0]
[1747246818192,2.20875848,176.73,176.71,10.0]
[1747246818377,41.53237891,176.72,176.71,10.0]
[1747246818570,14.14267126,176.77,176.73,10.0]
[1747246818866,31.15222208,177.0,176.74,10.0]
[1747246818867,41.53237891,176.88,176.74,10.0]
[1747246819074,19.79190228,176.84,176.73,10.0]
[1747246819265,41.53237891,176.74,176.73,10.0]
[1747246819472,41.53237891,176.74,176.71,10.0]
[1747246819789,48.0660484,176.84,176.72,10.0]
[1747246819995,41.53237891,176.73,176.7,10.0]
[1747246820164,41.53237891,176.71,176.7,10.0]
[1747246820359,26.28432314,176.82,176.71,10.0]
[1747246820570,41.53237891,176.73,176.72,10.0]
[1747246820771,41.53237891,176.73,176.69,10.0]
[1747246821083,41.53237891,176.72,176.68,10.0]
[1747246821273,41.53237891,176.7,176.69,10.0]
[1747246821455,41.53237891,176.7,176.68,10.0]
[1747246821662,19.80310059,176.74,176.66,10.0]
[1747246821863,41.53237891,176.67,176.64,10.0]
[1747246822262,19.80310059,176.74,176.64,10.0]
[1747246822263,18.933972,176.73,176.64,10.0]
[1747246822495,41.53237891,176.65,176.64,10.0]
[1747246822666,19.67474444,176.65,176.64,10.0]
[1747246822992,75.35940186,176.65,176.6,10.0]
[1747246823287,41.53237891,176.61,176.57,10.0]
[1747246823467,41.53237891,176.64,176.54,28.38466011]
[1747246823468,41.53237891,176.59,176.56,10.0]
[1747246823669,41.53237891,176.58,176.55,10.0]
[1747246823885,41.53237891,176.56,176.55,10.0]
[1747246824179,41.53237891,176.57,176.52,51.53237891]
[1747246824368,41.53237891,176.58,176.53,10.0]
[1747246824574,41.53237891,176.56,176.52,10.0]
[1747246824770,41.53237891,176.55,176.5,10.0]
[1747246824963,0.28432314,176.63,176.5,10.0]
[1747246825265,0.28432314,176.63,176.51,51.53237891]
[1747246825467,0.28432314,176.63,176.52,10.0]
[1747246825689,41.53237891,176.56,176.51,10.0]
[1747246825887,0.28432314,176.63,176.52,10.0]
[1747246826181,41.53237891,176.56,176.52,10.0]
[1747246826683,5.66411781,176.55,176.51,10.0]
[1747246826886,5.66411781,176.55,176.51,41.53237891]
[1747246827183,5.66411781,176.55,176.51,10.0]
[1747246827370,41.53237891,176.54,176.51,10.0]
[1747246827689,41.53237891,176.57,176.52,10.0]
[1747246827994,41.53237891,176.57,176.54,10.0]
[1747246828196,14.1558793,176.61,176.52,51.53237891]
[1747246828441,41.53237891,176.56,176.52,10.0]
[1747246828695,5.663797,176.56,176.53,10.0]
[1747246829177,41.53237891,176.54,176.51,10.0]
[1747246829378,19.32328952,176.56,176.51,10.0]
[1747246829564,5.163797,176.56,176.52,10.0]
[1747246829771,5.163797,176.56,176.51,51.53237891]
[1747246829973,5.163797,176.56,176.53,10.0]
[1747246830201,46.69617591,176.56,176.53,10.0]
[1747246830392,5.163797,176.56,176.53,10.0]
[1747246830594,41.53237891,176.56,176.51,10.0]
[1747246830901,41.53237891,176.56,176.53,10.0]
[1747246831677,41.53237891,176.56,176.52,10.0]
[1747246832002,41.53237891,176.53,176.48,10.0]
[1747246832181,41.53237891,176.53,176.4,47.70607891]
[1747246832182,41.53237891,176.49,176.43,10.0]
[1747246832383,41.53237891,176.48,176.47,10.0]
[1747246832713,41.53237891,176.48,176.43,10.0]
[1747246832714,5.66668555,176.47,176.43,10.0]
[1747246832881,47.19906446,176.47,176.43,10.0]
[1747246833712,5.66572237,176.5,176.44,10.0]
[1747246834007,41.53237891,176.48,176.43,51.53237891]
[1747246834203,41.53237891,176.46,176.43,10.0]
[1747246834378,41.53237891,176.44,176.4,10.0]
[1747246834581,5.66829157,176.42,176.39,10.0]
[1747246834908,47.20067048,176.42,176.39,10.0]
[1747246835281,41.53237891,176.41,176.37,10.0]
[1747246835490,5.66829157,176.42,176.38,10.0]
[1747246835712,47.20067048,176.42,176.41,10.0]
[1747246836206,47.20067048,176.42,176.38,10.0]
[1747246836404,47.20067048,176.42,176.41,10.0]
[1747246836581,41.53237891,176.43,176.41,10.0]
[1747246836782,14.16884932,176.45,176.41,10.0]
[1747246837104,5.66668555,176.47,176.42,10.0]
[1747246837297,41.53237891,176.43,176.41,10.0]
[1747246837479,41.53237891,176.42,176.39,10.0]
[1747246837678,41.53237891,176.42,176.36,18.64964886]
[1747246837679,41.53237891,176.41,176.38,10.0]
[1747246838003,41.53237891,176.42,176.38,10.0]
[1747246838202,41.53237891,176.42,176.4,10.0]
[1747246838417,41.53237891,176.41,176.39,10.0]
[1747246838578,5.66829157,176.42,176.4,10.0]
[1747246838992,5.66829157,176.42,176.39,10.0]
[1747246839193,47.20067048,176.42,176.4,10.0]
[1747246839508,41.53237891,176.41,176.36,10.0]
[1747246839712,41.53237891,176.39,176.35,10.0]
[1747246840416,61.37139942,176.42,176.39,10.0]
[1747246841311,19.83902051,176.42,176.39,10.0]
[1747246841498,5.66829157,176.42,176.39,51.53237891]
[1747246842017,5.66829157,176.42,176.4,10.0]
[1747246842536,47.20067048,176.42,176.4,10.0]
[1747246842810,19.83227561,176.48,176.4,10.0]
[1747246843015,61.36465452,176.48,176.42,10.0]
[1747246843307,41.53237891,176.47,176.42,10.0]
[1747246843512,41.53237891,176.46,176.42,10.0]
[1747246844319,41.53237891,176.47,176.42,10.0]
[1747246844889,5.66700668,176.46,176.43,1.41686705]
[1747246845798,5.66700668,176.46,176.42,10.0]
[1747246846718,47.19938559,176.46,176.42,10.0]
[1747246847028,41.53237891,176.43,176.36,10.0]
[1747246847192,41.53237891,176.41,176.37,10.0]
[1747246847388,19.83677169,176.44,176.39,10.0]
[1747246847620,41.53237891,176.42,176.39,10.0]
[1747246847796,41.53237891,176.41,176.39,10.0]
[1747246848003,41.53237891,176.41,176.4,1.4170799]
[1747246848205,41.53237891,176.42,176.4,1.4170799]
[1747246848901,47.2009918,176.41,176.4,1.4170799]
[1747246849096,47.2009918,176.41,176.39,10.0]
[1747246849312,5.66861289,176.41,176.39,10.0]
[1747246849510,5.66861289,176.41,176.39,51.53237891]
[1747246849711,5.66861289,176.41,176.39,10.0]
[1747246850700,41.53237891,176.44,176.41,10.0]
[1747246850899,138.2,176.5,176.42,41.53237891]
[1747246850900,55.69958388,176.47,176.42,41.53237891]
[1747246851331,5.66700668,176.46,176.42,41.53237891]
[1747246851515,5.66700668,176.46,176.43,10.0]
[1747246851739,5.66700668,176.46,176.45,10.0]
[1747246852028,47.19938559,176.46,176.42,10.0]
[1747246852225,41.53237891,176.44,176.42,10.0]
[1747246852824,5.66829157,176.42,176.41,10.0]
[1747246853009,47.20067048,176.42,176.39,10.0]
[1747246853332,5.66829157,176.42,176.39,10.0]
[1747246854132,41.53237891,176.47,176.42,10.0]
[1747246854626,41.53237891,176.46,176.42,51.53237891]
[1747246855006,14.16109663,176.54,176.48,10.0]
[1747246855207,19.82553528,176.54,176.48,10.0]
[1747246855439,41.53237891,176.52,176.48,10.0]
[1747246855737,41.53237891,176.51,176.48,10.0]
[1747246855939,41.53237891,176.5,176.46,51.53237891]
[1747246856119,41.53237891,176.5,176.47,10.0]
[1747246856319,41.53237891,176.5,176.45,51.53237891]
[1747246856647,41.53237891,176.51,176.48,10.0]
[1747246856934,19.82553528,176.54,176.49,41.53237891]
[1747246856935,55.69347554,176.54,176.49,41.53237891]
[1747246857117,5.66475953,176.53,176.5,41.53237891]
[1747246857318,218.4568,176.63,176.53,10.0]
[1747246857525,55.68923518,176.6,176.55,41.53237891]
[1747246857919,41.53237891,176.59,176.54,51.53237891]
[1747246858128,41.53237891,176.57,176.54,10.0]
[1747246858324,41.53237891,176.58,176.54,51.53237891]
[1747246858523,41.53237891,176.59,176.54,10.0]
[1747246858723,41.53237891,176.58,176.54,10.0]
[1747246858932,14.15685627,176.6,176.54,51.53237891]
[1747246859133,41.53237891,176.58,176.54,10.0]
[1747246859339,14.15685627,176.6,176.54,10.0]
[1747246859543,41.53237891,176.55,176.49,10.0]
[1747246859841,41.53237891,176.53,176.49,10.0]
[1747246860030,41.53237891,176.53,176.44,1.13316521]
[1747246860031,41.53237891,176.56,176.5,10.0]
[1747246860231,41.53237891,176.51,176.48,10.0]
[1747246860422,41.53237891,176.52,176.49,10.0]
[1747246860722,41.53237891,176.53,176.49,10.0]
[1747246860925,41.53237891,176.51,176.46,10.0]
[1747246861130,41.53237891,176.5,176.47,10.0]
[1747246861439,41.53237891,176.51,176.47,10.0]
[1747246861620,41.53237891,176.52,176.48,10.0]
[1747246861824,138.2,176.54,176.48,10.0]
[1747246862150,41.53237891,176.51,176.46,51.53237891]
[1747246862530,41.53237891,176.49,176.45,10.0]
[1747246862851,41.53237891,176.48,176.44,10.0]
[1747246863039,5.66668555,176.47,176.44,10.0]
[1747246863345,41.53237891,176.46,176.42,10.0]
[1747246863552,41.53237891,176.43,176.39,10.0]
[1747246863741,41.53237891,176.43,176.38,10.0]
[1747246863920,41.53237891,176.43,176.38,41.53237891]
[1747246864322,41.53237891,176.41,176.37,41.53237891]
[1747246864651,138.2,176.46,176.35,10.0]
[1747246864652,41.53237891,176.38,176.35,10.0]
[1747246864818,41.53237891,176.4,176.36,41.53237891]
[1747246865019,5.66925562,176.39,176.36,41.53237891]
[1747246865537,5.66925562,176.39,176.35,51.53237891]
[1747246865732,5.66925562,176.39,176.36,41.53237891]
[1747246865938,5.66925562,176.39,176.35,51.53237891]
[1747246866147,5.66925562,176.39,176.35,41.53237891]
[1747246866449,5.66925562,176.39,176.34,41.53237891]
[1747246866450,47.20163453,176.39,176.34,41.53237891]
[1747246866944,47.20163453,176.39,176.33,10.0]
[1747246867145,41.53237891,176.38,176.35,10.0]
[1747246867353,41.53237891,176.37,176.33,41.53237891]
[1747246867518,41.53237891,176.36,176.31,51.53237891]
[1747246867719,41.53237891,176.35,176.3,10.0]
[1747246867919,41.53237891,176.35,176.3,51.53237891]
[1747246868123,41.53237891,176.36,176.33,10.0]
[1747246869054,41.53237891,176.36,176.34,10.0]
[1747246869353,47.20292044,176.35,176.33,10.0]
[1747246869928,5.67054153,176.35,176.32,51.53237891]
[1747246870129,5.67054153,176.35,176.32,10.0]
[1747246870359,41.53237891,176.33,176.29,10.0]
[1747246870532,41.53237891,176.33,176.28,51.53237891]
[1747246871027,19.84689537,176.35,176.28,51.53237891]
[1747246871028,41.53237891,176.32,176.28,51.53237891]
[1747246871251,41.53237891,176.33,176.31,10.0]
[1747246872343,41.53237891,176.32,176.28,41.53237891]
[1747246872544,41.53237891,176.32,176.28,51.53237891]
[1747246872737,41.53237891,176.32,176.25,18.64964886]
[1747246872738,41.53237891,176.32,176.27,10.0]
[1747246872931,41.53237891,176.32,176.27,51.53237891]
[1747246873137,179.73237891,176.33,176.3,10.0]
[1747246873443,5.67182803,176.31,176.28,51.53237891]
[1747246873838,5.67182803,176.31,176.28,41.53237891]
[1747246874036,47.20420694,176.31,176.27,10.0]
[1747246874251,5.67182803,176.31,176.3,10.0]
[1747246874849,5.67182803,176.31,176.27,41.53237891]
[1747246875158,5.67182803,176.31,176.3,10.0]
[1747246875363,19.8513981,176.31,176.27,51.53237891]
[1747246875566,61.38377701,176.31,176.26,10.0]
[1747246875860,138.2,176.3,176.27,41.53237891]
[1747246876043,138.2,176.3,176.27,51.53237891]
[1747246876463,138.2,176.3,176.29,10.0]
[1747246877160,138.2,176.3,176.29,51.53237891]
[1747246878470,5.67055637,176.35,176.33,10.0]
[1747246878643,138.2,176.36,176.35,10.0]
[1747246878956,138.2,176.36,176.34,10.0]
[1747246878957,143.87022,176.36,176.34,10.0]
[1747246879350,143.87022,176.36,176.33,51.53237891]
[1747246879547,143.87022,176.36,176.34,10.0]
[1747246879866,143.87022,176.36,176.33,51.53237891]
[1747246880584,138.2,176.36,176.35,51.53237891]
[1747246880748,34.4470157,176.43,176.38,10.0]
[1747246880749,5.66893424,176.4,176.38,10.0]
[1747246881062,5.66893424,176.4,176.39,10.0]
[1747246881465,5.66861289,176.41,176.39,10.0]
[1747246881664,41.53237891,176.4,176.35,51.53237891]
[1747246882269,41.53237891,176.4,176.36,51.53237891]
[1747246882968,41.53237891,176.39,176.34,10.0]
[1747246883275,138.2,176.38,176.34,10.0]
[1747246883450,5.6698985,176.37,176.34,51.53237891]
[1747246883655,5.6698985,176.37,176.35,10.0]
[1747246884460,5.6698985,176.37,176.35,51.53237891]
[1747246885352,5.6698985,176.37,176.36,10.0]
[1747246885678,5.6698985,176.37,176.35,51.53237891]
[1747246886171,5.6698985,176.37,176.35,10.0]
[1747246886379,5.6698985,176.37,176.35,51.53237891]
[1747246886562,5.6698985,176.37,176.35,10.0]
[1747246886962,5.6698985,176.37,176.35,51.53237891]
[1747246887165,5.6698985,176.37,176.35,10.0]
[1747246887361,5.6698985,176.37,176.34,37.44194985]
[1747246887682,5.6698985,176.37,176.35,10.0]
[1747246890978,5.6698985,176.37,176.34,37.44194985]
[1747246891183,5.6698985,176.37,176.35,10.0]
[1747246891666,33.11184835,176.37,176.34,10.0]
[1747246891866,27.44194985,176.36,176.33,10.0]
[1747246893103,5.67054153,176.35,176.33,10.0]
[1747246893273,5.67054153,176.35,176.32,10.0]
[1747246893468,5.67054153,176.35,176.33,10.0]
[1747246895403,5.67054153,176.35,176.33,37.44194985]
[1747246895579,5.67054153,176.35,176.34,37.44194985]
[1747246895901,14.17474627,176.37,176.28,6.80694149]
[1747246895902,5.6698985,176.37,176.36,10.0]
[1747246896471,5.6698985,176.37,176.36,37.44194985]
[1747246896794,5.6698985,176.37,176.36,10.0]
[1747246897275,5.6698985,176.37,176.3,10.0]
[1747246897276,138.2,176.36,176.3,10.0]
[1747246897461,33.11249138,176.35,176.31,27.44194985]
[1747246897665,143.87031521,176.36,176.34,27.44194985]
[1747246897867,143.87031521,176.36,176.33,10.0]
[1747246897868,143.87031521,176.36,176.35,27.44194985]
[1747246898084,143.87031521,176.36,176.35,37.44194985]
[1747246898387,143.87031521,176.36,176.35,10.0]
[1747246898597,143.87031521,176.36,176.35,37.44194985]
[1747246899582,143.87031521,176.36,176.35,10.0]
[1747246903295,5.66957704,176.38,176.35,37.44194985]
[1747246903621,5.66957704,176.38,176.37,37.44194985]
[1747246903777,5.66957704,176.38,176.37,10.0]
[1747246904476,5.66957704,176.38,176.37,37.44194985]
[1747246905081,5.66893424,176.4,176.37,10.0]
[1747246905281,27.44194985,176.38,176.35,10.0]
[1747246905870,27.44194985,176.38,176.36,10.0]
[1747246906067,27.44194985,176.39,176.36,10.0]
[1747246906274,19.84126984,176.4,176.36,10.0]
[1747246906472,47.28321969,176.4,176.36,10.0]
[1747246907800,27.44194985,176.39,176.36,10.0]
[1747246908175,27.44194985,176.37,176.32,10.0]
[1747246908403,27.44194985,176.37,176.24,18.64964886]
[1747246908404,27.44194985,176.35,176.34,10.0]
[1747246908706,138.2,176.36,176.34,10.0]
[1747246908997,138.2,176.36,176.35,37.44194985]
[1747246909203,47.28321969,176.4,176.35,37.44194985]
[1747246909508,47.28321969,176.4,176.36,27.44194985]
[1747246909808,47.28321969,176.4,176.37,10.0]
[1747246909983,19.84126984,176.4,176.37,10.0]
[1747246910691,47.28321969,176.4,176.38,10.0]
[1747246911032,19.84126984,176.4,176.38,10.0]
[1747246911310,5.66861289,176.41,176.39,10.0]
[1747246911488,5.66861289,176.41,176.39,37.44194985]
[1747246911689,5.66861289,176.41,176.39,10.0]
[1747246912197,5.66861289,176.41,176.39,37.44194985]
[1747246912704,5.66861289,176.41,176.39,10.0]
[1747246913304,47.28024255,176.43,176.42,10.0]
[1747246913512,19.8382927,176.43,176.42,10.0]
[1747246913710,19.8382927,176.43,176.39,27.44194985]
[1747246913711,47.28024255,176.43,176.4,10.0]
[1747246914007,27.44194985,176.41,176.39,10.0]
[1747246914573,27.44194985,176.4,176.38,10.0]
[1747246914777,27.44194985,176.4,176.39,10.0]
[1747246915094,27.44194985,176.42,176.39,10.0]
[1747246915297,5.66861289,176.41,176.4,10.0]
[1747246915808,33.11056274,176.41,176.39,10.0]
[1747246916010,33.11056274,176.41,176.4,10.0]
[1747246916331,5.66861289,176.41,176.4,10.0]
[1747246916983,5.66861289,176.41,176.4,37.44194985]
[1747246917203,138.2,176.45,176.43,10.0]
[1747246917204,5.66764905,176.44,176.43,10.0]
[1747246917385,5.66764905,176.44,176.43,37.44194985]
[1747246917586,5.66636446,176.48,176.47,10.0]
[1747246918201,33.10831431,176.48,176.45,10.0]
[1747246918551,33.10831431,176.48,176.46,10.0]
[1747246918552,19.83227561,176.48,176.46,10.0]
[1747246918688,47.27422546,176.48,176.46,10.0]
[1747246919391,19.83227561,176.48,176.46,10.0]
[1747246920413,19.83227561,176.48,176.47,10.0]
[1747246922102,47.27422546,176.48,176.44,10.0]
[1747246922301,47.27422546,176.48,176.46,10.0]
[1747246922302,27.44194985,176.47,176.46,10.0]
[1747246922506,19.83227561,176.48,176.46,10.0]
[1747246922811,47.27422546,176.48,176.46,10.0]
[1747246923018,19.83227561,176.48,176.47,10.0]
[1747246924415,19.83227561,176.48,176.46,10.0]
[1747246924623,19.83227561,176.48,176.47,10.0]
[1747246925523,19.83227561,176.48,176.45,37.44194985]
[1747246925818,19.83227561,176.48,176.47,10.0]
[1747246926720,5.66540139,176.51,176.47,37.44194985]
[1747246926925,5.66540139,176.51,176.48,27.44194985]
[1747246927138,5.66540139,176.51,176.43,25.45085672]
[1747246927139,33.10735124,176.51,176.49,10.0]
[1747246927421,27.44194985,176.5,176.46,10.0]
[1747246927627,27.44194985,176.48,176.45,10.0]
[1747246927800,5.66668555,176.47,176.45,10.0]
[1747246928493,5.66668555,176.47,176.46,10.0]
[1747246928711,5.66668555,176.47,176.45,10.0]
[1747246929322,5.66668555,176.47,176.46,10.0]
[1747246929822,33.1086354,176.47,176.45,10.0]
[1747246930029,165.64194985,176.46,176.43,10.0]
[1747246930327,27.44194985,176.44,176.43,10.0]
[1747246930628,27.44194985,176.45,176.43,10.0]
[1747246930813,27.44194985,176.45,176.44,10.0]
[1747246931123,165.64194985,176.46,176.44,10.0]